{"text_format":"1","workbook":"xlsx","n_sheets":42,"sheets":["modReestrMO","Инструкция","Справочная информация","Лог обновления","Выбор субъекта РФ","Титульный","ТБО инвестиции","ТБО показатели","ТБО показатели (2)","Ссылки на публикации","Комментарии","Проверка","TEHSHEET","CheckCopy","AllSheetsInThisWorkbook","et_union","modInfo","REESTR_ORG","modHyperlink","modChange","modTitleSheetHeaders","modServiceModule","modClassifierValidate","Паспорт","REESTR_FILTERED","REESTR_MO","modfrmReestr","modDblClick","modfrmDateChoose","modfrmSphereChoose","modSheetMain01","modSheetMain03","modSheetMain04","modSheetMain06","modSheetMain07","modSheetMain08","modUpdTemplMain","modRegionSelectSub","modfrmCheckUpdates","modCommonProv","modProvGeneralProc","modThisWorkbook"],"not_rendered":{"charts":0,"images":107,"macros":1,"external_links":0,"defined_names":214,"comments":0,"pivot_tables":0},"unopened":[],"bounds":{"document_bytes":16777216,"sheet_cells":100000,"rows_first":2000,"rows_last":500,"rows_between":2000,"halvings":0,"cell_chars":16384,"cell_head_chars":4096},"cells_cut":0,"cells_raw":0,"read":"whole","date_system":"1900"}

{"sheet":"modReestrMO","index":0,"n_rows":0,"n_cols":0,"rows_kept":0,"cut":false,"hidden":true,"merged":[]}

{"sheet":"Инструкция","index":1,"n_rows":76,"n_cols":6,"rows_kept":76,"cut":false,"hidden":false,"merged":[[60,2,60,4],[61,2,61,4],[62,2,62,4],[57,2,57,4],[58,2,58,4],[59,2,59,4],[82,1,82,4],[64,2,64,4],[65,2,65,4],[66,2,66,4],[67,2,67,4],[68,2,68,4],[76,2,76,4],[70,2,70,4],[69,2,69,4],[41,2,41,4],[42,2,42,4],[63,2,63,4],[45,2,45,4],[46,2,46,4],[43,2,43,4],[44,2,44,4],[47,2,47,4],[55,2,55,4],[56,2,56,4],[28,2,28,4],[34,3,34,4],[40,2,40,4],[29,2,29,4],[30,2,30,4],[31,2,31,4],[32,2,32,4],[39,2,39,4],[38,2,38,4],[37,2,37,4],[8,2,8,4],[22,3,22,4],[15,3,15,4],[17,3,17,4],[26,2,26,4],[21,3,21,4],[23,3,23,4],[18,2,18,4],[19,2,19,3],[20,3,20,4],[33,3,33,4],[9,2,9,4],[10,2,10,4],[11,2,11,4],[25,3,25,4],[13,3,13,4],[14,3,14,4],[12,2,12,4],[16,3,16,4],[27,2,27,4],[7,2,7,4],[1,1,1,4],[3,1,3,4],[5,2,5,4],[6,2,6,4],[2,2,2,3]]}
[]
[null,{"$f":"\"Код шаблона: \" & GetCode()","v":"Код шаблона: JKH.OPEN.INFO.TARIFF.TBO"}]
[null,{"$f":"\"Версия \" & GetVersion()","v":"Версия 5.0.1"}]
[null,"Инструкция"]
[]
[null,null,"1.  Технические требования",null,null,"t"]
[null,null," • на рабочем месте должен быть установлен MS Office 2003, 2007, 2010 с полной версией MS Excel"]
[null,null," • макросы во время работы должны быть включены (!)"]
[null,null," • для корректной работы шаблона требуется выбрать низкий уровень безопасности"]
[null,null,"(В меню MS Excel 2003: Сервис | Макрос | Безопасность | выбрать нижний пункт «Низкая безопасность» | OK)"]
[null,null,"(В меню MS Excel 2007/2010: Параметры Excel | Центр управления безопасностью | Параметры центра управления безопасностью | Параметры макросов | Включить все макросы | ОК)"]
[null,null,"2.  Законодательная основа шаблона",null,null,"u"]
[null,null,"Данный шаблон разработан в соответствии с:"]
[null,null," • ","ПОСТАНОВЛЕНИЕМ от 30 декабря 2009 г. N 1140 «ОБ УТВЕРЖДЕНИИ СТАНДАРТОВ РАСКРЫТИЯ ИНФОРМАЦИИ ОРГАНИЗАЦИЯМИ КОММУНАЛЬНОГО КОМПЛЕКСА И СУБЪЕКТАМИ ЕСТЕСТВЕННЫХ МОНОПОЛИЙ, ОСУЩЕСТВЛЯЮЩИМИ ДЕЯТЕЛЬНОСТЬ В СФЕРЕ ОКАЗАНИЯ УСЛУГ ПО ПЕРЕДАЧЕ ТЕПЛОВОЙ ЭНЕРГИИ»"]
[null,null,null,"Полный текст Постановления №1140 на сайте ФСТ России"]
[null,null,null,{"$f":"\"Подробнее о сфере \"& TSphere_full","v":"Подробнее о сфере утилизации (захоронения) твердых бытовых отходов"}]
[null,null," • ","ПОСТАНОВЛЕНИЕМ от 13 апреля 2010 г. N 237 «ОБ УТВЕРЖДЕНИИ ПРАВИЛ ОСУЩЕСТВЛЕНИЯ КОНТРОЛЯ ЗА СОБЛЮДЕНИЕМ ОРГАНИЗАЦИЯМИ КОММУНАЛЬНОГО КОМПЛЕКСА СТАНДАРТОВ РАСКРЫТИЯ ИНФОРМАЦИИ»"]
[null,null,null,"Полный текст Постановления №237"]
[null,null,"3.  Условные обозначения",null,null,"u"]
[null,null,"Типы ячеек:"]
[null,null,"●"," - обязательные для заполнения;"]
[null,null,"●"," - предназначенные для заполнения;"]
[null,null,"●"," - с формулами и константами или заполняемые автоматически (например, при выборе организации)."]
[null,null,"●"," - ячейки с выбором значений до двойному клику (щелчку) (например, при выборе даты или данных из "]
[null,null,null,"справочников)."]
[null,null,null,"Пояснение к заполнению на листе."]
[null,null,"4.  Работа с реестрами",null,null,"u"]
[null,null,"Если в предложенном Вам списке необходимая организация (МР/МО) отсутствует, обновите реестр с помощью кнопки «Обновить реестр организаций» («Обновить реестр МО»)."]
[null,null,"В результате синхронизации с базой данных список организаций (МР/МО) будет заменён актуальным (механизм синхронизации требует подключения к сети Интернет и основан на использовании протокола HTTPS (TCP порт 443)). "]
[null,null,"Если после обновления Вам не удалось найти необходимую организацию в списке, обратитесь к ответственному за поддержание реестра Вашего региона. Информация о региональных органах регулирования доступна по ссылке:"]
[null,null,"http://www.fstrf.ru/regions/region/showlist"]
[null,null,"5.  Обновление шаблона",null,null,"u"]
[null,null,"Если Ваш компьютер имеет подключение к Интернет, можно автоматически проверять наличие доступных обновлений. Выберите способ оповещения о наличии обновлений для шаблона:"]
[null,null,"y","проверять доступные обновления (рекомендуется)"]
[null,null,null,"никогда не проверять наличие обновлений (не рекомендуется)"]
[null,null,null,null,"Чтобы проверить наличие обновлений, нажмите кнопку «Обновить текущую версию шаблона»."]
[null,null,null,null,"Чтобы отобразить/скрыть лог обновления и статусные сообщения, нажмите кнопку \"Отобразить/скрыть лист Лог обновления\"."]
[null,null,"6.  Работа с листом «Проверка»",null,null,"u"]
[null,null,"• При сохранении шаблона осуществляется проверка корректности данных, в том числе на наличие значений в ячейках, обязательных для заполнения. "]
[null,null,"• Если какая-то ячейка не удовлетворяет условию проверки, на лист «Проверка» добавляется гиперссылка на данную ячейку и указывается причина ошибки."]
[null,null,"• В колонке «Статус» для каждого сообщения возможны 2 значения: ошибка и предупреждение. "]
[null,null,"• При наличии сообщений со статусом «Ошибка» шаблон будет отклонён системой и не будет загружен в хранилище данных, сообщения со статусом «Предупреждение» носят информационный характер, и такой шаблон будет принят системой."]
[]
[null,null,"• Если Вы работаете в табличном процессоре Microsoft Excel 2007 и выше, Вы можете использовать для работы формат XLSM (Книга Excel с поддержкой макросов)."]
[null,null,"• При сохранении не следует выбирать формат XLSX (Книга Excel), так как в указанном формате макросы, задействованные при работе с шаблоном, БЕЗВОЗВРАТНО УДАЛЯЮТСЯ."]
[null,null,"• После того, как будут устранены все замечания, при сохранении шаблона появится сообщение «Шаблон готов к сохранению без замечаний»."]
[]
[null,null,"7.  Организационно-технические консультации",null,null,"t"]
[null,null,null,"ФИО:",""]
[null,null,null,"Телефон:",""]
[null,null,null,"E-mail:"]
[null,null,null,"Web-сайт:","http://support.eias.ru/"]
[null,null,null,"Комментарий",""]
[null,null,null,"Дистрибутивы:","http://eias.ru/?page=show_distrs"]
[null,null,null,null,"для устранения ошибок (напр., \"Compile error in hidden module\")"]
[null,null,"8.  Методология заполнения",null,null,"u"]
[null,null,"   Перед началом работы с шаблоном, на листе «Выбор субъекта РФ», Вам необходимо выбрать из выпадающего списка нужный регион. После выбора региона в шаблоне отобразятся листы для заполнения."]
[null,null,"   В разделе «Справочная информация» размещены фрагменты Постановления №1140 «СТАНДАРТЫ РАСКРЫТИЯ ИНФОРМАЦИИ ОРГАНИЗАЦИЯМИ КОММУНАЛЬНОГО КОМПЛЕКСА И СУБЪЕКТАМИ ЕСТЕСТВЕННЫХ МОНОПОЛИЙ, ОСУЩЕСТВЛЯЮЩИМИ ДЕЯТЕЛЬНОСТЬ В СФЕРЕ ОКАЗАНИЯ УСЛУГ ПО ПЕРЕДАЧЕ ТЕПЛОВОЙ ЭНЕРГИИ», относящиеся к данному шаблону. В случае вопросов по составу раскрываемой информации, срокам раскрытия и формату раскрытия Вы можете уточнить их в соответствующих документах."]
[null,null,"   На листе «Титульный» нужно заполнить все ячейки голубого цвета."]
[null,null,"   Для создания печатной формы необходимо выполнить щелчок левой кнопки мыши по значку принтера (левый верхний угол под заголовком) на листе «Титульный»."]
[null,null,"   В зависимости от выбранного значения в поле «Публикация» на листе «Титульный» изменяется содержание и количество листов."]
[null,null,{"$f":" IF(TSphere = \"ТБО\", \"   Перечислите все муниципальные районы, в которых организация осуществляет услуги по утилизации (захоронению) твердых бытовых отходов.\", \"   В случае, если тариф не дифференцируется по системам \"&IF(TSphere = \"ТС\",\"теплоснабжения\",\"коммунальной инфраструктуры\")&\", перечислите все муниципальные районы, в которых организация осуществляет услуги \" &TSphere_full&\".\")","v":"   Перечислите все муниципальные районы, в которых организация осуществляет услуги по утилизации (захоронению) твердых бытовых отходов."}]
[null,null,{"$f":" IF(TSphere = \"ТБО\", \"   Перечислите все муниципальные образования, в которых организация осуществляет услуги по утилизации (захоронению) твердых бытовых отходов.\", \"   В случае, если тариф не дифференцируется по системам \"&IF(TSphere = \"ТС\",\"теплоснабжения\",\"коммунальной инфраструктуры\")&\", перечислите все муниципальные образования, в которых организация осуществляет услуги \" &TSphere_full&\".\")","v":"   Перечислите все муниципальные образования, в которых организация осуществляет услуги по утилизации (захоронению) твердых бытовых отходов."}]
[null,null,"   Задайте период регулирования на листе «Титульный» , выбрав начало и окончание очередного периода с помощью календаря /выполните двойной щелчок по соответствующей синей ячейке/."]
[null,null,"   Для выбора того или иного источника публикации выполните двойной щелчок по синей ячейке напротив соответствующего источника. Если Вы снимаете галочку с пункта, то будут скрыты и очищены соответствующие строки на листе «Ссылки на публикации»."]
[null,null,"  На листе «Ссылки на публикации» «Адрес сайта в сети интернет» вводите, не нарушая цвет ячейки /если копируете гиперссылку из браузера, то выполните двойной щелчок левой кнопки мыши по ячейке и только после этого можете вставить скопированный элемент/."]
[null,null,"   При вводе даты на расчетных листах необходимо выполнить двойной щелчок левой кнопки мыши по соответствующей ячейке."]
[null,null,"   Если какой-либо из показателей на расчетных листах для Вашей организации отсутствует, введите в поле, обязательное для заполнение, «0» (для числовых показателей) и «-» (для текстовых). "]
[null,null,"   Внимательно следите за информационными сообщениями на расчетных листах. "]
[null,null,"   Все необходимые комментарии по всем формам Вы можете отразить на листе «Комментарии». "]
[null,null,"9.  Консультации по методологии заполнения",null,null,"u"]
[null,null,null,"ФИО:",""]
[null,null,null,"Телефон:",""]
[null,null,null,"E-mail:","openinfo@eias.ru"]
[null,null,null,"Web-сайт:","http://www.support.eias.ru/"]
[null,null,null,"Комментарий",""]

{"sheet":"Справочная информация","index":2,"n_rows":45,"n_cols":3,"rows_kept":45,"cut":false,"hidden":false,"merged":[[2,1,2,2]]}
[]
[null,{"$f":"code","v":"Код шаблона: JKH.OPEN.INFO.TARIFF.TBO"}]
[null,"Инструкция"]
[]
[]
[null,null,"VI. Стандарты раскрытия информации в сфере утилизации (захоронения) твердых бытовых отходов"]
[]
[null,null,"55. В сфере утилизации (захоронения) твердых бытовых отходов раскрытию подлежит информация: "]
[null,null,"а) о ценах (тарифах) на регулируемые товары и услуги и надбавках к этим ценам (тарифам); "]
[null,null,"б) об основных показателях финансово-хозяйственной деятельности регулируемых организаций, включая структуру основных производственных затрат (в части регулируемой деятельности); "]
[null,null,"в) об инвестиционных программах и отчетах об их реализации. "]
[null,null,"56. Информация о ценах (тарифах) на регулируемые товары и услуги и надбавках к этим ценам (тарифам) содержит сведения: "]
[null,null,"а) об утвержденных тарифах на утилизацию (захоронение) твердых бытовых отходов; "]
[null,null,"б) об утвержденных надбавках к ценам (тарифам) на утилизацию (захоронение) твердых бытовых отходов для потребителей; "]
[null,null,"в) об утвержденных надбавках к тарифам регулируемых организаций на утилизацию (захоронение) твердых бытовых отходов. "]
[null,null,"57. В отношении каждой из групп сведений, указанных в пункте 56 настоящего документа, указываются наименование регулирующего органа, принявшего решение об утверждении цен (тарифов) и надбавок к ним, реквизиты (дата и номер) такого решения, величина установленного тарифа или надбавки, срок действия тарифа или надбавки, а также источник официального опубликования решения. "]
[null,null,"58. Информация об основных показателях финансово-хозяйственной деятельности регулируемых организаций, включая структуру основных производственных затрат (в части регулируемой деятельности), содержит сведения: "]
[null,null,"а) о виде регулируемой деятельности (утилизация твердых бытовых отходов, захоронение твердых бытовых отходов); "]
[null,null,"б) о выручке от регулируемой деятельности (тыс. рублей); "]
[null,null,"в) о себестоимости оказываемых услуг по регулируемому виду деятельности (тыс. рублей), включающей: "]
[null,null,"расходы на оплату труда и отчисления на социальные нужды основного производственного персонала; "]
[null,null,"расходы на амортизацию основных производственных средств и аренду имущества, используемого в технологическом процессе; "]
[null,null,"общепроизводственные (цеховые) расходы, в том числе расходы на оплату труда и отчисления на социальные нужды; "]
[null,null,"общехозяйственные (управленческие) расходы, в том числе расходы на оплату труда и отчисления на социальные нужды; "]
[null,null,"расходы на ремонт (капитальный и текущий) основных производственных средств; "]
[null,null,"расходы на услуги производственного характера, выполняемые по договорам с организациями на проведение регламентных работ в рамках технологического процесса; "]
[null,null,"г) о валовой прибыли от оказания услуг по регулируемому виду деятельности (тыс. рублей); "]
[null,null,"д) о чистой прибыли по регулируемому виду деятельности с указанием размера ее расходования на финансирование мероприятий, предусмотренных инвестиционной программой регулируемой организации, по развитию системы (объектов) утилизации твердых бытовых отходов (тыс. рублей); "]
[null,null,"е) об изменении стоимости основных фондов, в том числе за счет ввода (вывода) из эксплуатации (тыс. рублей);"]
[null,null,"ж) о годовой бухгалтерской отчетности, включая бухгалтерский баланс и приложения к нему (раскрывается регулируемыми организациями, выручка от регулируемой деятельности которых превышает 80 процентов совокупной выручки за отчетный год); "]
[null,null,"з) об объеме принятых на утилизацию (захоронение) твердых бытовых отходов (тыс. куб. м в год); "]
[null,null,"и) о среднесписочной численности основного производственного персонала (человек). "]
[null,null,"59. Информация об инвестиционных программах и отчетах об их реализации содержит наименование соответствующей программы, а также сведения: "]
[null,null,"а) о цели инвестиционной программы; "]
[null,null,"б) о сроках начала и окончания реализации инвестиционной программы; "]
[null,null,"в) о потребностях в финансовых средствах, необходимых для реализации инвестиционной программы, в том числе с разбивкой по годам, мероприятиям и источникам финансирования инвестиционной программы (тыс. рублей);"]
[null,null,"г) о показателях эффективности реализации инвестиционной программы, а также об изменении технико-экономических показателей регулируемой организации (с разбивкой по мероприятиям); "]
[null,null,"д) об использовании инвестиционных средств за отчетный год с разбивкой по кварталам, мероприятиям и источникам финансирования инвестиционной программы (тыс. рублей). "]
[null,null,"60. В официальных печатных изданиях сведения, указанные в подпунктах \"в\" - \"д\" пункта 59 настоящего документа, публикуются в отношении мероприятий инвестиционной программы, доля расходов на реализацию которых превышает 5 процентов суммы финансирования инвестиционной программы за отчетный год. "]
[null,null,"61. Информация об условиях, на которых осуществляется оказание регулируемых услуг, содержит сведения об условиях публичных договоров поставок регулируемых товаров, оказания регулируемых услуг. "]
[null,null,"62. Информация, указанная в пунктах 56 и 61 настоящего документа, раскрывается регулируемой организацией не позднее 30 дней со дня принятия соответствующего решения об установлении тарифа (надбавки) на очередной период регулирования. "]
[null,null,"Одновременно с указанной в пункте 56 настоящего документа информацией на сайте в сети Интернет публикуются сведения о финансово-хозяйственной деятельности регулируемой организации, указанные в подпунктах \"а\" - \"д\", \"з\", \"и\" пункта 58 и подпунктах \"а\" - \"г\" пункта 59 настоящего документа, учтенные органом исполнительной власти субъекта Российской Федерации (органом местного самоуправления) при установлении тарифов и надбавок к тарифам на очередной период регулирования. "]
[null,null,"Информация, указанная в пунктах 58 и 59 настоящего документа, раскрывается регулируемой организацией не позднее 30 дней со дня сдачи годового бухгалтерского баланса в налоговые органы и должна соответствовать годовой бухгалтерской отчетности за отчетный год. "]
[null,null,"Одновременно с указанной в пункте 58 настоящего документа информацией о расходах на ремонт (капитальный и текущий) основных производственных средств и расходах на услуги производственного характера, выполняемые по договорам с организациями на проведение регламентных работ в рамках технологического процесса, на сайте в сети Интернет публикуется информация об объемах товаров и услуг, их стоимости и способах приобретения у тех организаций, сумма оплаты услуг которых превышает 20 процентов суммы расходов по каждой из указанных статьей расходов."]
[null,null,"При этом указывается информация о поставке товаров и услуг, стоимость которых превышает 20 процентов суммы поставки товаров и услуг каждой из этих организаций. "]

{"sheet":"Лог обновления","index":3,"n_rows":4,"n_cols":4,"rows_kept":4,"cut":false,"hidden":true,"merged":[]}
[]
["3/17/2012  12:12:41 AM","Дата/Время","Сообщение","Статус"]
[null,"12/19/2013  12:07:31 PM","Проверка доступных обновлений...","Информация"]
[null,"12/19/2013  12:07:32 PM","Версия шаблона 5.0.1 актуальна, обновление не требуется","Информация"]

{"sheet":"Выбор субъекта РФ","index":4,"n_rows":2,"n_cols":8,"rows_kept":2,"cut":false,"hidden":true,"merged":[[1,1,2,6]]}
[null,25,8454143,null,null,null,0]
[null,"Костромская область",null,null,null,null,null,0]

{"sheet":"Титульный","index":5,"n_rows":62,"n_cols":7,"rows_kept":62,"cut":false,"hidden":false,"merged":[[41,2,43,2],[41,4,42,4],[39,5,39,6],[46,5,46,6],[15,5,15,6],[59,5,59,6],[55,5,55,6],[53,5,53,6],[50,5,50,6],[54,5,54,6],[47,5,47,6],[34,5,34,6],[61,5,61,6],[49,5,49,6],[60,5,60,6],[58,5,58,6],[57,5,57,6],[51,5,51,6],[1,5,1,7],[2,5,2,7],[10,5,10,6],[14,5,14,6],[3,3,3,7],[6,5,6,6],[8,5,8,6],[12,5,12,6],[11,5,11,6],[29,5,29,6],[45,5,45,6],[32,5,32,6],[16,5,16,6],[22,5,22,6],[26,5,26,6],[27,5,27,6],[18,5,18,6],[24,5,24,6]]}
[{"$f":"region_name","v":"Костромская область"},null,{"$f":"org&\"_INN:\"&inn&\"_KPP:\"&kpp","v":"ООО \"Спецтранс\"_INN:4407009445_KPP:440701001"}]
[{"$f":"IF(org=\"\",\"Не определено\",org)","v":"ООО \"Спецтранс\""},{"$f":"IF(inn=\"\",\"Не определено\",inn)","v":"4407009445"},null,null,null,{"$f":"code","v":"Код шаблона: JKH.OPEN.INFO.TARIFF.TBO"}]
[null,null,null,null,null,{"$f":"version","v":"Версия 5.0.1"}]
[{"$f":"IF(fil=\"\",\"Не определено\",fil)","v":"Не определено"},{"$f":"IF(kpp=\"\",\"Не определено\",kpp)","v":"440701001"},null,{"$f":"\"Показатели, подлежащие раскрытию в сфере \"&TSphere_full&\" (План)\"","v":"Показатели, подлежащие раскрытию в сфере утилизации (захоронения) твердых бытовых отходов (План)"}]
[]
[null,null,null,null,"Создать печатную форму"]
[null,null,null,null,"Субъект РФ","Костромская область"]
[]
[null,null,null,null,"Публикация","На официальном сайте организации"]
[]
[null,null,null,null,null,"Источники публикации"]
[null,null,null,null,{"$f":"\"Сайт\"&IF(strPublication=\"На официальном сайте организации\",\" организации \",\" \")&\"в сети Интернет\"","v":"Сайт организации в сети Интернет"},"a"]
[null,null,null,null,"Печатное издание","a"]
[]
[null,null,null,null,null,"Период регулирования"]
[null,null,null,null,"Начало очередного периода регулирования","01.01.2014"]
[null,null,null,null,"Окончание очередного периода регулирования","31.12.2014"]
[]
["L0","Признак филиала",null,null,"Является ли данное юридическое лицо подразделением (филиалом) другой организации","нет"]
[]
[null,null,null,null,"Дата последнего обновления реестра организаций: 19.12.2013 12:07:43"]
[66]
[null,null,null,null,"Наименование организации","ООО \"Спецтранс\""]
[]
[null,null,null,null,"Наименование ПОДРАЗДЕЛЕНИЯ"]
[]
[null,null,null,null,"ИНН","4407009445"]
[null,null,null,null,"КПП","440701001"]
[]
[null,null,null,null,"Вид деятельности","Утилизация (захоронение) твердых бытовых отходов и иные виды деятельности"]
[]
[]
[null,null,null,null,"Режим налогообложения","специальный (упрощенная система налогообложения, система налогообложения для сельскохозяйственных товаропроизводителей)"]
[]
[null,null,null,null,"Организация выполняет инвестиционную программу","нет"]
[]
[]
[null,null,null,null,"Дата последнего обновления реестра МР/МО: 19.12.2013 12:07:45"]
[]
[null,null,null,null,{"$f":"\"Муниципальный район, на территории которого \" & IF(TSphere = \"ТБО\", \"оказывает услуги данная организация\", \"размещена система \"&IF(TSphere = \"ТС\",\"теплоснабжения\",\"коммунальной инфраструктуры\"))","v":"Муниципальный район, на территории которого оказывает услуги данная организация"},{"$f":"\"Муниципальное образование, на территории которого \" & IF(TSphere = \"ТБО\", \"оказывает услуги данная организация\", \"размещена система \"&IF(TSphere = \"ТС\",\"теплоснабжения\",\"коммунальной инфраструктуры\"))","v":"Муниципальное образование, на территории которого оказывает услуги данная организация"}]
[null,null,null,null,"Наименование МР","Наименование МО","ОКТМО"]
[null,null,null,null,"городской округ город Шарья","городской округ город Шарья","34730000"]
[null,null,null,null,null,"Добавить МО"]
[null,null,null,null,"Добавить МР"]
[]
[null,null,null,null,null,"Адрес организации"]
[null,null,null,null,"Юридический адрес:","157505, Костромская обл., г. Шарья, ул. Ив. Шатрова 1"]
[null,null,null,null,"Почтовый адрес:","157505, Костромская обл., г. Шарья, ул. Ив. Шатрова 1"]
[]
[null,null,null,null,null,"Руководитель"]
[null,null,null,null,"Фамилия, имя, отчество:","Муравьев Вледимир Валентинович"]
[null,null,null,null,"(код) номер телефона:","8(49449)5-19-96"]
[]
[null,null,null,null,null,"Главный бухгалтер"]
[null,null,null,null,"Фамилия, имя, отчество:","Маслова Татьяная Леонидовна"]
[null,null,null,null,"(код) номер телефона:","8(49449)5-19-96"]
[]
[null,null,null,null,null,"Должностное лицо, ответственное за составление формы"]
[null,null,null,null,"Фамилия, имя, отчество:","Козлова Ольга Вячеславовна"]
[null,null,null,null,"Должность:","экономист"]
[null,null,null,null,"(код) номер телефона:","8(49449)5-19-96"]
[null,null,null,null,"e-mail:","spectrans_44@mail.ru"]

{"sheet":"ТБО инвестиции","index":6,"n_rows":42,"n_cols":9,"rows_kept":42,"cut":false,"hidden":true,"merged":[[28,5,28,6],[15,3,15,10],[19,5,19,6],[25,5,25,6],[31,5,31,6],[20,5,20,6],[1,5,1,6],[34,4,35,4],[34,5,35,5],[23,5,23,6],[24,5,24,6],[3,4,4,4],[3,5,4,5],[26,5,26,6],[21,5,21,6],[22,5,22,6],[16,3,16,10],[19,8,19,9],[36,5,37,5],[36,4,37,4],[32,5,33,5],[29,5,29,6],[32,4,33,4]]}
[]
[]
[]
[null,null,null,null,null,null,"План на отчетный период"]
[null,null,null,null,null,null,"Факт на начало реализации программы**"]
[]
[]
[]
[]
[]
[]
[]
[]
[]
[null,null,null,{"$f":"code","v":"Код шаблона: JKH.OPEN.INFO.TARIFF.TBO"}]
[null,null,null,"Информация об инвестиционных программах и отчетах об их реализации *"]
[null,null,null,{"$f":"IF(org=\"\",\"\",IF(fil=\"\",org,org & \" (\" & fil & \")\")) & IF(OR(godStart=\"\",godEnd=\"\"),\"\",\", \"&YEAR(godStart)& \"-\" & YEAR(godEnd)&\" гг.\")","v":"ООО \"Спецтранс\", 2014-2014 гг."}]
[]
[]
[null,"Мероприятие 1",null,null,"№ п/п","Наименование показателя",null,"Значение","Добавить мероприятие"]
[null,4,null,null,1,{"$f":"E21+1","v":2},null,"3"]
[null,null,null,null,1,"Наименование инвестиционной программы (мероприятия)"]
[null,"х",null,null,2,"Цель инвестиционной программы","Цель инвестиционной программы"]
[null,"",null,null,3,"Срок начала реализации инвестиционной программы",null,""]
[null,"",null,null,4,"Срок окончания реализации инвестиционной программы",null,""]
[null,{"$f":"SUM(B27:B28)","v":0},null,null,"5","Потребность в финансовых средствах, необходимых для реализации инвестиционной программы за весь период реализации (тыс.руб.), в том числе по источникам финансирования:"]
[null,null,null,null,"5.1"]
[null,null,null,null,null,"Добавить источники"]
[null,{"$f":"SUM(B30:B31)","v":0},null,null,"6","Потребность в финансовых средствах, необходимых для реализации инвестиционной программы за отчетный период (тыс.руб.), в том числе по источникам финансирования:"]
[null,null,null,null,"6.1"]
[null,null,null,null,null,"Добавить источники"]
[null,"х",null,null,"7","Эффективность реализации инвестиционной программы (включая изменения технико-экономических показателей организации):",null,"х"]
[null,"х",null,null,"7.1","Срок окупаемости, лет","План на отчетный период"]
[null,"х",null,null,null,null,"Факт на начало реализации программы**"]
[null,null,null,null,"7.2","Продолжительность (бесперебойность) поставки товаров и услуг (час/день)","План на отчетный период"]
[null,null,null,null,null,null,"Факт на начало реализации программы**"]
[null,null,null,null,"7.3","Численность населения, пользующегося услугами данной организации, чел.","План на отчетный период"]
[null,null,null,null,null,null,"Факт на начало реализации программы**"]
[null,null,null,null,null,"Добавить показатель"]
[null,"Удалить мероприятие"]
[null,null,null,null,"*","Раскрывается не позднее 30 дней со дня принятия соответствующего решения об установлении тарифа(надбавки) на очередной период регулирования."]
[null,null,null,null,"**","На последнюю дату отчетного периода, предшествующего периоду начала реализации инвестиционной программы."]

{"sheet":"ТБО показатели","index":7,"n_rows":38,"n_cols":8,"rows_kept":38,"cut":false,"hidden":true,"merged":[[37,5,37,7],[6,4,6,7],[7,4,7,7]]}
[]
[]
[]
[]
[]
[null,null,null,{"$f":"code","v":"Код шаблона: JKH.OPEN.INFO.TARIFF.TBO"}]
[null,null,null,null,"Информация об основных показателях финансово-хозяйственной деятельности регулируемых организаций, включая структуру основных производственных затрат\n(в части регулируемой деятельности) *"]
[null,null,null,null,{"$f":"IF(org=\"\",\"\",IF(fil=\"\",org,org & \" (\" & fil & \")\")) & IF(OR(godStart=\"\",godEnd=\"\"),\"\",\", \"&YEAR(godStart)& \"-\" & YEAR(godEnd)&\" гг.\")","v":"ООО \"Спецтранс\", 2014-2014 гг."}]
[]
[]
[null,null,null,null,"№ п/п","Наименование показателя","Единица измерения","Значение"]
[null,null,null,null,"1","2","3","4"]
[null,null,null,null,"1","Вид регулируемой деятельности","x",{"$f":"IF(activity = \"\",\"\",activity)","v":"Утилизация (захоронение) твердых бытовых отходов и иные виды деятельности"}]
[null,null,null,null,"2","Выручка от регулируемой деятельности","тыс.руб."]
[null,null,null,null,"3","Себестоимость оказываемых услуг по регулируемому виду деятельности, включающей:","тыс.руб.",{"$f":"SUM(H16:H20)+H23+H26+SUM(H29:H30)","v":0}]
[null,null,null,null,"3.1","Расходы на оплату труда","тыс.руб."]
[null,null,null,null,"3.2","Отчисления на социальные нужды основного производственного персонала","тыс.руб."]
[null,null,null,null,"3.3","Расходы на амортизацию основных производственных средств","тыс.руб."]
[null,null,null,null,"3.4","Расходы на аренду имущества, используемого в технологическом процессе","тыс.руб."]
[null,null,null,null,"3.5","Общепроизводственные (цеховые) расходы","тыс.руб."]
[null,null,null,null,"3.5.1","расходы на оплату труда","тыс.руб."]
[null,null,null,null,"3.5.2","отчисления на социальные нужды","тыс.руб."]
[null,null,null,null,"3.6","Общехозяйственные (управленческие) расходы","тыс.руб."]
[null,null,null,null,"3.6.1","расходы на оплату труда","тыс.руб."]
[null,null,null,null,"3.6.2","отчисления на социальные нужды","тыс.руб."]
[null,null,null,null,"3.7","Расходы на ремонт (капитальный и текущий) основных производственных средств","тыс.руб."]
[null,null,null,null,"3.7.1","Справочно: расходы на капитальный ремонт основных производственных средств","тыс.руб."]
[null,null,null,null,"3.7.2","Справочно: расходы на текущий ремонт основных производственных средств","тыс.руб."]
[null,null,null,null,"3.8","Расходы на услуги производственного характера, выполняемые по договорам с организациями на проведение регламентных работ в рамках технологического процесса","тыс.руб."]
[null,null,null,null,null,"Добавить запись"]
[null,null,null,null,"4","Валовая прибыль от оказания услуг по регулируемому виду деятельности","тыс.руб."]
[null,null,null,null,"5","Чистая прибыль по регулируемому виду деятельности, в том числе:","тыс.руб."]
[null,null,null,null,"5.1","чистая прибыль на финансирование мероприятий, предусмотренных инвестиционной программой по развитию системы (объектов) утилизации твердых бытовых отходов","тыс.руб."]
[null,null,null,null,"6","Объем принятых на утилизацию (захоронение) твердых бытовых отходов","тыс.куб.м в год"]
[null,null,null,null,"6.1","Объем принятых на утилизацию (захоронение) твердых бытовых отходов","тыс.тонн в год"]
[null,null,null,null,"7","Среднесписочная численность основного производственного персонала","чел."]
[null,null,null,null,"8","Комментарии"]
[null,null,null,null,"*","Раскрывается не позднее 30 дней со дня принятия соответствующего решения об установлении тарифа(надбавки) на очередной период регулирования."]

{"sheet":"ТБО показатели (2)","index":8,"n_rows":28,"n_cols":13,"rows_kept":28,"cut":false,"hidden":true,"merged":[[20,5,20,10],[21,5,21,10],[22,4,25,4],[22,5,25,5],[23,6,24,6],[23,7,24,7],[15,4,18,4],[15,5,18,5],[16,6,17,6],[16,7,17,7],[5,3,5,5],[7,3,7,13],[13,5,13,10],[14,5,14,10],[6,4,6,12]]}
[]
[]
[]
[]
[]
[null,null,null,{"$f":"code","v":"Код шаблона: JKH.OPEN.INFO.TARIFF.TBO"}]
[null,null,null,null,"Информация об объемах товаров и услуг, их стоимости и способах приобретения *"]
[null,null,null,{"$f":"IF(org=\"\",\"\",IF(fil=\"\",org,org & \" (\" & fil & \")\")) & IF(OR(godStart=\"\",godEnd=\"\"),\"\",\", \"&YEAR(godStart)& \"-\" & YEAR(godEnd)&\" гг.\")","v":"ООО \"Спецтранс\", 2014-2014 гг."}]
[]
[]
[]
[null,null,null,null,"№ п/п","Наименование поставщика","Способ приобретения","Реквизиты договора","Наименование товара/услуги","Объем приобретенных товаров, услуг","Единица измерения объема","Стоимость, тыс.руб.","Доля расходов, % (от суммы расходов по указанной статье)"]
[null,null,null,null,1,2,3,4,5,6,7,8,9]
[null,null,null,null,1,"Расходы на ремонт (текущий и капитальный) основных производственных средств итого. Из них:",null,null,null,null,null,{"$f":"costs_OPS_4","v":0}]
[null,null,null,null,"1.1","Товары и услуги, приобретенные у организаций, сумма оплаты услуг которых превышает 20% суммы расходов по статье"]
[null,null,null,null,"1.1.1",null,"Итого по поставщику",null,null,null,null,{"$f":"SUM(L17:L19)","v":0},{"$f":"nerr(L16/costs_OPS_4)*100","v":0}]
[]
[null,null,null,null,null,null,null,null,"Добавить запись"]
[null,null,null,null,null,null,"Добавить способ"]
[null,null,null,null,null,"Добавить поставщика"]
[null,null,null,null,2,"Расходы на услуги производственного характера, выполняемые по договорам с организациями на проведение регламентных работ в рамках технологического процесса. Из них:",null,null,null,null,null,{"$f":"costs_PH_4","v":0}]
[null,null,null,null,"2.1","Товары и услуги, приобретенные у организаций, сумма оплаты услуг которых превышает 20% суммы расходов по статье"]
[null,null,null,null,"2.1.1",null,"Итого по поставщику",null,null,null,null,{"$f":"SUM(L24:L26)","v":0},{"$f":"nerr(L23/costs_PH_4)*100","v":0}]
[]
[null,null,null,null,null,null,null,null,"Добавить запись"]
[null,null,null,null,null,null,"Добавить способ"]
[null,null,null,null,null,"Добавить поставщика"]
[null,null,null,null,"*","Раскрывается не позднее 30 дней со дня принятия соответствующего решения об установлении тарифа(надбавки) на очередной период регулирования."]

{"sheet":"Ссылки на публикации","index":9,"n_rows":35,"n_cols":12,"rows_kept":35,"cut":false,"hidden":false,"merged":[[30,6,30,11],[31,6,31,11],[32,6,32,11],[5,3,5,5],[6,3,6,12],[7,3,7,12],[10,4,10,10],[29,6,29,11]]}
[]
[]
[]
[]
[]
[null,null,null,{"$f":"code","v":"Код шаблона: JKH.OPEN.INFO.TARIFF.TBO"}]
[null,null,null,{"$f":"\"Ссылки на публикации \"&IF(strPublication=\"На официальном сайте организации\",\"на официальном сайте организации\",\"в других источниках\")","v":"Ссылки на публикации на официальном сайте организации"}]
[null,null,null,{"$f":"IF(org=\"\",\"\",IF(fil=\"\",org,org & \" (\" & fil & \")\")) & IF(OR(godStart=\"\",godEnd=\"\"),\"\",\", \"&YEAR(godStart)& \"-\" & YEAR(godEnd)&\" гг.\")","v":"ООО \"Спецтранс\", 2014-2014 гг."}]
[]
[]
[null,null,null,null,{"$f":"\"Указание на официальное печатное издание и (или) адрес сайта\"&IF(strPublication=\"На официальном сайте организации\",\" организации \",\" \")&\"в сети Интернет, которые используются для размещения раскрываемой информации *\"","v":"Указание на официальное печатное издание и (или) адрес сайта организации в сети Интернет, которые используются для размещения раскрываемой информации *"}]
[null,null,null,null,null,null,null,"True"]
[null,null,null,null,"№ п/п","Содержание","Наименование источника",null,"Дата размещения информации","Номер печатного издания","Дата печатного издания",{"$f":"IF(strPublication=\"На официальном сайте организации\",\"Адрес страницы официального сайта организации в сети интернет, на которой размещена раскрываемая информация\",\"Адрес сайта в сети Интернет\")","v":"Адрес страницы официального сайта организации в сети интернет, на которой размещена раскрываемая информация"}]
[null,null,null,null,1,{"$f":"E14+1","v":2},3,3,{"$f":"H14+1","v":4},{"$f":"I14+1","v":5},{"$f":"J14+1","v":6},{"$f":"K14+1","v":7}]
[]
[]
[]
[null,null,null,null,"1.2","Информация об основных показателях финансово-хозяйственной деятельности регулируемых организаций, включая структуру основных производственных затрат (в части регулируемой деятельности)"]
[null,null,null,null,"1.2.1",{"$f":"\"Сайт\"&IF(strPublication=\"На официальном сайте организации\",\" организации \",\" \")&\"в сети Интернет\"","v":"Сайт организации в сети Интернет"},"spectrans.ucoz.ru",null,"19.12.2013","x","x","http://spectrans.ucoz.ru/index/pokazateli_fkhd/0-19"]
[null,null,null,null,"1.2.2","Печатное издание","Газета \"Ветлужский край\"",null,"10.12.2013","№193(16453)","10.12.2013","x"]
[null,null,null,null,"1.3","Информация о расходах на капитальный и текущий ремонт, услуги производственного характера"]
[null,null,null,null,"1.3.1",{"$f":"\"Сайт\"&IF(strPublication=\"На официальном сайте организации\",\" организации \",\" \")&\"в сети Интернет\"","v":"Сайт организации в сети Интернет"},"spectrans.ucoz.ru",null,"19.12.2013","x","x","http://spectrans.ucoz.ru/index/pokazateli_fkhd/0-19"]
[null,null,null,null,"1.3.2","Печатное издание","Газета \"Ветлужский край\"",null,"10.12.2013","№193(16453)","10.12.2013","x"]
[null,null,null,null,"1.4",{"$f":"\"Условия публичных договоров  поставок регулируемых товаров, оказания регулируемых услуг, в том числе договоров на подключение к системе \"&TSphere_full","v":"Условия публичных договоров  поставок регулируемых товаров, оказания регулируемых услуг, в том числе договоров на подключение к системе утилизации (захоронения) твердых бытовых отходов"}]
[null,null,null,null,"1.4.1",{"$f":"\"Сайт\"&IF(strPublication=\"На официальном сайте организации\",\" организации \",\" \")&\"в сети Интернет\"","v":"Сайт организации в сети Интернет"},"spectrans.ucoz.ru",null,"19.12.2013","x","x","http://spectrans.ucoz.ru/index/pokazateli_fkhd/0-19"]
[null,null,null,null,"1.4.2","Печатное издание","Газета \"Ветлужский край\"",null,"10.12.2013","№193(16453)","10.12.2013","x"]
[null,null,null,null,"1.8"]
[null,null,null,null,null,"Добавить запись"]
[null,null,null,null,"2",{"$f":"\"Справочно: Контакты службы, ответственной за прием и обработку заявок на подключение к системе  \"&TSphere_full","v":"Справочно: Контакты службы, ответственной за прием и обработку заявок на подключение к системе  утилизации (захоронения) твердых бытовых отходов"}]
[null,null,null,null,"2.1","Адрес","157505, Костромская обл., г. Шарья, ул. Ив. Шатрова 18"]
[null,null,null,null,"2.2","(код) Номер телефона","8(49449)5-19-96"]
[null,null,null,null,"2.3","E-mail","spectrans_44@mail.ru"]
[null,null,null,null,"2.4","Сайт в сети Интернет","spectrans.ucoz.ru"]
[null,null,null,null,"*","Источники публикации сообщаются в течение 5 рабочих дней со дня размещения информации на сайте в сети Интернет."]
[null,null,null,null,null,"Информация раскрывается не позднее 30 дней со дня принятия соответствующего решения об установлении тарифа(надбавки) на очередной период регулирования."]

{"sheet":"Комментарии","index":10,"n_rows":13,"n_cols":6,"rows_kept":13,"cut":false,"hidden":false,"merged":[[6,3,6,5],[7,3,7,5]]}
[]
[]
[]
[]
[]
[null,null,null,{"$f":"code","v":"Код шаблона: JKH.OPEN.INFO.TARIFF.TBO"}]
[null,null,null,"КОММЕНТАРИИ"]
[null,null,null,{"$f":"IF(org=\"\",\"\",IF(fil=\"\",org,org & \" (\" & fil & \")\")) & IF(OR(godStart=\"\",godEnd=\"\"),\"\",\", \"&YEAR(godStart)& \"-\" & YEAR(godEnd)&\" гг.\")","v":"ООО \"Спецтранс\", 2014-2014 гг."}]
[]
[null,null,null,null,"№ п/п","Комментарий"]
[null,null,null,null,1,{"$f":"E11+1","v":2}]
[null,null,null,null,1]
[null,null,null,null,null,"Добавить комментарий"]

{"sheet":"Проверка","index":11,"n_rows":10,"n_cols":8,"rows_kept":10,"cut":false,"hidden":false,"merged":[[7,4,7,7]]}
[]
[]
[]
[]
[]
[]
[]
[null,null,null,null,"Результаты проверки"]
[]
[null,null,null,null,"Ссылка 1","Ссылка 2","Описание причины","Обязательность выполнения"]

{"sheet":"TEHSHEET","index":12,"n_rows":85,"n_cols":96,"rows_kept":85,"cut":false,"hidden":true,"merged":[[0,17,0,18]]}
["Логика","Кварталы","Года","Единица измерения","Месяц-текст","Месяц-число","Номер СКИ\n/SKI_number/","День-число","Регионы","Вид деятельности","Источники финансирования","Единица измерения","Вид тарифа на передачу тепловой энергии /kind_of_tariff_unit/","НДС /kind_of_NDS/","цель инвестиционной программы /objective_of_IPR/","цель инвестиционной программы /kind_of_purchase_method/","наименование источника\n/kind_of_name_source/","Виды топлива\n/kind_of_fuels/",null,"регионы-исключения\n/region_exception/",null,"версия шаблона\n (DocProp_Version)","5.0.1",null,null,null,null,null,null,null,null,null,null,null,null,null,null,null,null,null,null,null,null,null,null,null,null,null,null,null,null,null,null,null,null,null,null,null,null,null,null,null,null,null,null,null,null,null,null,null,null,null,null,null,null,null,null,null,null,null,null,null,null,null,null,null,null,null,null,null,null,null,null,null,null,"5.86"]
["да","I квартал",2006,"тыс.руб.","январь","01","1","01","Алтайский край","Оказание услуг в сфере водоотведения и очистки сточных вод","кредиты банков","тыс.куб м/сутки","руб./Гкал/ч/мес","общий","автоматизация (с уменьшением штата)","торги/аукционы","наименование источника","газ природный по регулируемой цене","тыс. м3","Краснодарский край",null,"код шаблона\n(DocProp_TemplateCode)","JKH.OPEN.INFO.TARIFF.TBO"]
["нет","II квартал",2007,"млн.руб.","февраль","02","2","02","Амурская область","Оказание услуг по перекачке","кредиты иностранных банков","Гкал/час","руб./Гкал","общий с учетом освобождения от уплаты НДС","уменьшение удельных затрат (повышение КПД)","прямые договора без торгов","не раскрывалась","газ природный по нерегулируемой цене","тыс. м3","Кировская область",null,"сфера\n(TSphere)","ТБО"]
[null,"III квартал",2008,null,"март","03","3","03","Архангельская область","Оказание услуг в сфере водоснабжения, водоотведения и очистки сточных вод","заемные ср-ва др. организаций","куб.м/час",null,"специальный (упрощенная система налогообложения, система налогообложения для сельскохозяйственных товаропроизводителей)","уменьшение издержек на производство","прочее",null,"газ сжиженный","кг","Республика Башкортостан",null,"сфера(латиница)\n(TSphere_trans)","TBO"]
[null,"IV квартал",2009,null,"апрель","04","4","04","Астраханская область",null,"федеральный бюджет",null,null,null,"снижение аварийности",null,null,"газовый конденсат","тонны","г.Санкт-Петербург",null,"сфера расширено\n(TSphere_full)","утилизации (захоронения) твердых бытовых отходов"]
[null,null,2010,null,"май","05","5","05","Белгородская область","Вид деятельности, на которую установлен тариф /kind_of_activity_WARM/","бюджет субъекта РФ",null,null,null,"прочее",null,null,"гшз","тонны","Чувашская республика",null,"признак общего шаблона\n(flag_main_template)","False"]
[null,null,2011,null,"июнь","06","6","06","Брянская область","Комбинированная выработка","бюджет муниципального образования",null,null,null,null,null,null,"мазут","тонны","Пермский край"]
[null,null,2012,null,"июль","07","7","07","Владимирская область","Некомбинированная выработка","ср-ва внебюджетных фондов",null,null,null,null,null,null,"нефть","тонны","Республика Татарстан"]
[null,null,2013,null,"август","08","8","08","Волгоградская область","Нет производства т/э","прибыль, направляемая на инвестиции",null,null,null,null,null,null,"дизельное топливо","тонны","Иркутская область"]
[null,null,2014,null,"сентябрь","09","9","09","Вологодская область","Смешанное производство","амортизация",null,null,null,null,null,null,"уголь бурый","тонны","Алтайский край"]
[null,null,2015,null,"октябрь",10,"10",10,"Воронежская область","Вид деятельности, на которую установлен тариф /kind_of_activity_HVS/","инвестиционная надбавка к тарифу",null,null,null,null,null,null,"уголь каменный","тонны"]
[null,null,null,null,"ноябрь",11,"11",11,"г.Байконур","Водоснабжение (подъем, очистка, транспортировка)","плата за подключение",null,null,null,null,null,null,"торф","тонны"]
[null,null,null,null,"декабрь",12,"12",12,"г. Москва","Подъем","прочие средства",null,null,null,null,null,null,"дрова","м3"]
[null,null,null,null,null,null,"13",13,"г.Санкт-Петербург","Транспортировка",null,null,null,null,null,null,null,"опил","м3"]
[null,null,null,null,null,null,"14",14,"Еврейская автономная область","Вид деятельности, на которую установлен тариф /kind_of_activity_VO/",null,null,null,null,null,null,null,"отходы березовые","м3"]
[null,null,null,null,null,null,"15",15,"Забайкальский край","Транспортировка и очистка сточных вод","XML_ORG_LIST_TAG_NAMES",null,null,null,null,null,null,"отходы осиновые","м3"]
[null,null,null,null,null,null,"16",16,"Ивановская область","Транспортировка сточных вод","NSRF",null,null,null,null,null,null,"печное топливо","тонны"]
[null,null,null,null,null,null,"17",17,"Иркутская область","Очистка сточных вод","MR_NAME",null,null,null,null,null,null,"пилеты","тонны"]
[null,null,null,null,null,null,"18",18,"Кабардино-Балкарская республика",null,"OKTMO_MR_NAME",null,null,null,null,null,null,"смола","тонны"]
[null,null,null,null,null,null,"19",19,"Калининградская область",null,"MO_NAME",null,null,null,null,null,null,"щепа","м3"]
[null,null,null,null,null,null,"20",20,"Калужская область",null,"OKTMO_NAME",null,null,null,null,null,null,"горючий сланец","тонны"]
[null,null,null,null,null,null,null,21,"Камчатский край",null,"ORG_NAME",null,null,null,null,null,null,"керосин","тонны"]
[null,null,null,null,null,null,null,22,"Карачаево-Черкесская республика",null,"INN_NAME",null,null,null,null,null,null,"кислородно-водородная смесь","тыс. м3"]
[null,null,null,null,null,null,null,23,"Кемеровская область",null,"KPP_NAME",null,null,null,null,null,null,"электроэнергия (НН)","тыс.кВт ч"]
[null,null,null,null,null,null,null,24,"Кировская область",null,"VDET_NAME",null,null,null,null,null,null,"электроэнергия (СН1)","тыс.кВт ч"]
[null,null,null,null,null,null,null,25,"Костромская область",null,null,null,null,null,null,null,null,"электроэнергия (СН2)","тыс.кВт ч"]
[null,null,null,null,null,null,null,26,"Краснодарский край",null,"XML_MR_MO_OKTMO_LIST_TAG_NAMES",null,null,null,null,null,null,"электроэнергия (ВН)","тыс.кВт ч"]
[null,null,null,null,null,null,null,27,"Красноярский край",null,"NSRF",null,null,null,null,null,null,"мощность","тыс.кВт"]
[null,null,null,null,null,null,null,28,"Курганская область",null,"MR_NAME",null,null,null,null,null,null,"прочее"]
[null,null,null,null,null,null,null,29,"Курская область",null,"OKTMO_MR_NAME"]
[null,null,null,null,null,null,null,30,"Ленинградская область",null,"MO_NAME"]
[null,null,null,null,null,null,null,31,"Липецкая область",null,"OKTMO_NAME"]
[null,null,null,null,null,null,null,null,"Магаданская область"]
[null,null,null,null,null,null,null,null,"Московская область"]
[null,null,null,null,null,null,null,null,"Мурманская область"]
[null,null,null,null,null,null,null,null,"Ненецкий автономный округ"]
[null,null,null,null,null,null,null,null,"Нижегородская область"]
[null,null,null,null,null,null,null,null,"Новгородская область"]
[null,null,null,null,null,null,null,null,"Новосибирская область"]
[null,null,null,null,null,null,null,null,"Омская область"]
[null,null,null,null,null,null,null,null,"Оренбургская область"]
[null,null,null,null,null,null,null,null,"Орловская область"]
[null,null,null,null,null,null,null,null,"Пензенская область"]
[null,null,null,null,null,null,null,null,"Пермский край"]
[null,null,null,null,null,null,null,null,"Приморский край"]
[null,null,null,null,null,null,null,null,"Псковская область"]
[null,null,null,null,null,null,null,null,"Республика Адыгея"]
[null,null,null,null,null,null,null,null,"Республика Алтай"]
[null,null,null,null,null,null,null,null,"Республика Башкортостан"]
[null,null,null,null,null,null,null,null,"Республика Бурятия"]
[null,null,null,null,null,null,null,null,"Республика Дагестан"]
[null,null,null,null,null,null,null,null,"Республика Ингушетия"]
[null,null,null,null,null,null,null,null,"Республика Калмыкия"]
[null,null,null,null,null,null,null,null,"Республика Карелия"]
[null,null,null,null,null,null,null,null,"Республика Коми"]
[null,null,null,null,null,null,null,null,"Республика Марий Эл"]
[null,null,null,null,null,null,null,null,"Республика Мордовия"]
[null,null,null,null,null,null,null,null,"Республика Саха (Якутия)"]
[null,null,null,null,null,null,null,null,"Республика Северная Осетия-Алания"]
[null,null,null,null,null,null,null,null,"Республика Татарстан"]
[null,null,null,null,null,null,null,null,"Республика Тыва"]
[null,null,null,null,null,null,null,null,"Республика Хакасия"]
[null,null,null,null,null,null,null,null,"Ростовская область"]
[null,null,null,null,null,null,null,null,"Рязанская область"]
[null,null,null,null,null,null,null,null,"Самарская область"]
[null,null,null,null,null,null,null,null,"Саратовская область"]
[null,null,null,null,null,null,null,null,"Сахалинская область"]
[null,null,null,null,null,null,null,null,"Свердловская область"]
[null,null,null,null,null,null,null,null,"Смоленская область"]
[null,null,null,null,null,null,null,null,"Ставропольский край"]
[null,null,null,null,null,null,null,null,"Тамбовская область"]
[null,null,null,null,null,null,null,null,"Тверская область"]
[null,null,null,null,null,null,null,null,"Томская область"]
[null,null,null,null,null,null,null,null,"Тульская область"]
[null,null,null,null,null,null,null,null,"Тюменская область"]
[null,null,null,null,null,null,null,null,"Удмуртская республика"]
[null,null,null,null,null,null,null,null,"Ульяновская область"]
[null,null,null,null,null,null,null,null,"Хабаровский край"]
[null,null,null,null,null,null,null,null,"Ханты-Мансийский автономный округ"]
[null,null,null,null,null,null,null,null,"Челябинская область"]
[null,null,null,null,null,null,null,null,"Чеченская республика"]
[null,null,null,null,null,null,null,null,"Чувашская республика"]
[null,null,null,null,null,null,null,null,"Чукотский автономный округ"]
[null,null,null,null,null,null,null,null,"Ямало-Ненецкий автономный округ"]
[null,null,null,null,null,null,null,null,"Ярославская область"]

{"sheet":"CheckCopy","index":13,"n_rows":10,"n_cols":8,"rows_kept":10,"cut":false,"hidden":true,"merged":[[7,4,7,7]]}
[]
[]
[]
[]
[]
[]
[]
[null,null,null,null,"Результаты проверки"]
[]
[null,null,null,null,"Ссылка 1","Ссылка 2","Описание причины","Обязательность выполнения"]

{"sheet":"AllSheetsInThisWorkbook","index":14,"n_rows":32,"n_cols":2,"rows_kept":32,"cut":false,"hidden":true,"merged":[]}
["Расчетные листы","Скрытые листы"]
["Инструкция","TEHSHEET"]
["Справочная информация","CheckCopy"]
["Лог обновления","AllSheetsInThisWorkbook"]
["Выбор субъекта РФ","et_union"]
["Титульный","modInfo"]
["ТБО инвестиции","REESTR_ORG"]
["ТБО показатели","modHyperlink"]
["ТБО показатели (2)","modChange"]
["Ссылки на публикации","modTitleSheetHeaders"]
["Комментарии","modServiceModule"]
["Проверка","modClassifierValidate"]
[null,"Паспорт"]
[null,"REESTR_FILTERED"]
[null,"REESTR_MO"]
[null,"modfrmReestr"]
[null,"modDblClick"]
[null,"modfrmDateChoose"]
[null,"modfrmSphereChoose"]
[null,"modReestrMO"]
[null,"modSheetMain01"]
[null,"modSheetMain03"]
[null,"modSheetMain04"]
[null,"modSheetMain06"]
[null,"modSheetMain07"]
[null,"modSheetMain08"]
[null,"modUpdTemplMain"]
[null,"modRegionSelectSub"]
[null,"modfrmCheckUpdates"]
[null,"modCommonProv"]
[null,"modProvGeneralProc"]
[null,"modThisWorkbook"]

{"sheet":"et_union","index":15,"n_rows":66,"n_cols":13,"rows_kept":66,"cut":false,"hidden":true,"merged":[[7,4,11,4],[42,4,43,4],[21,4,24,4],[21,5,24,5],[22,6,23,6],[22,7,23,7],[29,4,32,4],[29,5,32,5],[30,6,31,6],[30,7,31,7]]}
[]
["add_INDEX_range"]
[]
[null,null,null,null,null,null,"тыс.руб."]
[]
["add_INDEX_WARM_range"]
[]
[null,null,null,null,"3.2.1",null,"тыс.руб."]
[null,null,null,null,null,"Стоимость","тыс.руб."]
[null,null,null,null,null,"Объем"]
[null,null,null,null,null,"Стоимость 1й единицы объема с учетом доставки (транспортировки)","тыс.руб.",{"$f":"nerr(H8/H10)","v":0}]
[null,null,null,null,null,"Способ приобретения","x"]
[]
["add_INDEX_HVS_object_range"]
[]
[null,null,null,null,null,null,"%"]
[]
["add_INDEX_2_SUPPLIER_range_1"]
["add_INDEX_2_ACQUISITION_range_1"]
["add_INDEX_2_RECORD_range"]
[]
[null,null,null,null,"1.1.1",null,"Итого по поставщику",null,null,null,null,{"$f":"SUM(L23:L25)","v":0},{"$f":"nerr(L22/costs_OPS_4)*100","v":0}]
[]
[null,null,null,null,null,null,null,null,"Добавить запись"]
[null,null,null,null,null,null,"Добавить способ"]
[]
["add_INDEX_2_SUPPLIER_2_range_1"]
["add_INDEX_2_ACQUISITION_2_range_1"]
[]
[null,null,null,null,"2.1.1",null,"Итого по поставщику",null,null,null,null,{"$f":"SUM(L31:L33)","v":0},{"$f":"nerr(L30/costs_PH_4)*100","v":0}]
[]
[null,null,null,null,null,null,null,null,"Добавить запись"]
[null,null,null,null,null,null,"Добавить способ"]
[]
["add_HYPERLINK_range"]
[]
[]
[]
[]
["add_MR_range"]
["add_MO_range"]
[]
[]
[null,null,null,null,null,"Добавить МО"]
[]
[]
["edit_ipr_pub"]
[]
[null,null,null,null,"1.1","Информация об инвестиционных программах и отчетах об их реализации **"]
[null,null,null,null,"1.1.1",{"$f":"\"Сайт\"&IF(strPublication=\"На официальном сайте организации\",\" организации \",\" \")&\"в сети Интернет\"","v":"Сайт организации в сети Интернет"},null,null,null,"x","x"]
[null,null,null,null,"1.1.2","Печатное издание",null,null,null,null,null,"x"]
[]
[]
["edit_ipr_pub_SPb"]
[]
[null,null,null,null,"1.1","Информация об инвестиционных программах и отчетах об их реализации **"]
[null,null,null,null,"1.1.1",{"$f":"\"Сайт\"&IF(strPublication=\"На официальном сайте организации\",\" организации \",\" \")&\"в сети Интернет\"","v":"Сайт организации в сети Интернет"},null,null,null,"x","x"]
[null,null,null,null,"1.1.2","Печатное издание",null,null,null,null,null,"x"]
[null,null,null,null,"1.1.3","Электронная версия печатного издания"]
[]
["edit_ipr_pub_comm"]
["edit_ipr_pub_comm_SPb"]
[]
[null,null,null,null,"**","Информация подлежит публикованию в официальных печатных изданиях (со ссылкой на адрес сайта в сети Интернет)."]
[]
["add_COMMENTS_range"]

{"sheet":"modInfo","index":16,"n_rows":17,"n_cols":2,"rows_kept":17,"cut":false,"hidden":true,"merged":[]}
[null,"Титульный"]
[null,"В зависимости от выбранного значения в поле \"Публикация\" изменяется содержание и количество листов"]
[null,{"$f":" IF(TSphere = \"ТБО\", \"Перечислите все муниципальные районы, в которых организация осуществляет услуги по утилизации (захоронению) твердых бытовых отходов\", \"В случае, если тариф не дифференцируется по системам \"&IF(TSphere = \"ТС\",\"теплоснабжения\",\"коммунальной инфраструктуры\")&\", перечислите все муниципальные районы, в которых организация осуществляет услуги \" &TSphere_full)","v":"Перечислите все муниципальные районы, в которых организация осуществляет услуги по утилизации (захоронению) твердых бытовых отходов"}]
[null,{"$f":" IF(TSphere = \"ТБО\", \"Перечислите все муниципальные образования, в которых организация осуществляет услуги по утилизации (захоронению) твердых бытовых отходов\", \"В случае, если тариф не дифференцируется по системам \"&IF(TSphere = \"ТС\",\"теплоснабжения\",\"коммунальной инфраструктуры\")&\", перечислите все муниципальные образования, в которых организация осуществляет услуги \" &TSphere_full)","v":"Перечислите все муниципальные образования, в которых организация осуществляет услуги по утилизации (захоронению) твердых бытовых отходов"}]
[null,"Признак дифференциации тарифа"]
[null,{"$f":"\"В случае, если тариф не дифференцируется по системам \"&IF(TSphere = \"ТС\",\"теплоснабжения\",\"коммунальной инфраструктуры\")&\", укажите \"\"1\"\".\nВыберите значение из списка, указав очередной условный порядковый номер системы \"&IF(TSphere = \"ТС\",\"теплоснабжения\",\"коммунальной инфраструктуры\")","v":"В случае, если тариф не дифференцируется по системам коммунальной инфраструктуры, укажите \"1\".\nВыберите значение из списка, указав очередной условный порядковый номер системы коммунальной инфраструктуры"}]
[null,"Задайте период регулирования, выбрав начало и окончание очередного периода с помощью календаря /выполните двойной щелчок по соответствующей синей ячейке/.\nИнформация раскрывается регулируемой организацией не позднее 30 дней со дня сдачи годового бухгалтерского баланса в налоговые органы и должна соответствовать годовой бухгалтерской отчетности за отчетный год"]
[null,"Укажите является ли данное юридическое лицо подразделением(филиалом) другой организации"]
[null,"Выполните двойной щелчок по синей ячейке в соответствующей строке, чтобы ввести дату"]
[null,"Нажмите на кнопку \"Выбор организации\", чтобы выбрать организацию или обновить реестр"]
[null,"Нажмите на кнопку \"Обновить реестр МО\", чтобы обновить реестр МР/МО"]
[null,"Для выбора того или иного источника публикации выполните двойной щелчок по синей ячейке напротив соответствующего источника.\nВНИМАНИЕ! Если Вы снимаете галочку с пункта, то будут скрыты и очищены соответствующие строки на листе \"Ссылки на публикации\"!"]
[null,"В зависимости от выбранного значения в поле \"Вид товара\" изменяется содержание и количество листов"]
[null,"Показатели (2)"]
[null,"Указывается информация о поставке товаров и услуг, стоимость которых превышает 20% суммы поставки товаров и услуг по каждой из организаций"]
[null,"Ссылки на публикации"]
[null,"Вводите адрес сайта, не нарушая цвет ячейки /если копируете гиперссылку из браузера, то выполните двойной щелчок по ячейке и только после этого можете вставить скопированный элемент/"]

{"sheet":"REESTR_ORG","index":17,"n_rows":14,"n_cols":8,"rows_kept":14,"cut":false,"hidden":true,"merged":[]}
["№","МР","МО","МО ОКТМО","ОРГАНИЗАЦИЯ","ИНН","КПП","ВИД ДЕЯТЕЛЬНОСТИ"]
[1,"Город Нерехта и Нерехтский муниципальный район","Город Нерехта","34626101","ООО \"УК Гермес\"","4401078160","440101001","Утилизация твердых бытовых отходов"]
[2,"Город Нея и Нейский муниципальный район","городское посление город Нея","34624101","МУП \"Нейское предприятие по благоустройству\"","4406004250","440601001","Утилизация (захоронение) твердых бытовых отходов"]
[3,"Макарьевский муниципальный район","городское поселение город Макарьев","34618101","МП Макарьевское КХ","4416003418","441601001","Утилизация (захоронение) твердых бытовых отходов"]
[4,"Мантуровский муниципальный район","Знаменское","34620412","ООО \"Жилкомсервис\"","4404003903","440401001","Захоронение твердых бытовых отходов"]
[5,"Октябрьский муниципальный район","Покровское","34628416","ЖКХ \"Покровское\"","4420001614","442001001","Утилизация (захоронение) твердых бытовых отходов и иные виды деятельности"]
[6,"Павинский муниципальный район","Павинское","34632416","МУП ЖКХ \"Коммунсервис\" Павинского района","4422002035","442201001","Утилизация (захоронение) твердых бытовых отходов и иные виды деятельности"]
[7,"Солигаличский муниципальный район","городское поселение город Солигалич","34640101","ООО \"Коммунальник\"","4426003030","442601001","Утилизация (захоронение) твердых бытовых отходов и иные виды деятельности"]
[8,"Судиславский муниципальный район","городское поселение посёлок Судиславль","34642151","МУП \"Судиславское ЖКХ\"","4427004212","442701001","Утилизация (захоронение) твердых бытовых отходов"]
[9,"городской округ город  Волгореченск","городской округ город Волгореченск","34706000","МУП \"Волгореченское ПАТП\"","4431001461","443101001","Утилизация (захоронение) твердых бытовых отходов и иные виды деятельности"]
[10,"городской округ город Буй","городской округ город Буй","34705000","МП \"Коммунальная инфраструктура\"","4402006761","440201001","Утилизация (захоронение) твердых бытовых отходов"]
[11,"городской округ город Галич","городской округ город Галич","34708000","ООО \"Полигон\"","4403005619","440301001","Утилизация (захоронение) твердых бытовых отходов и иные виды деятельности"]
[12,"городской округ город Кострома","городской округ город Кострома","34701000","ООО \"ПУ ТБО\"  г. Кострома","4414009929","441401001","Утилизация (захоронение) твердых бытовых отходов"]
[13,"городской округ город Шарья","городской округ город Шарья","34730000","ООО \"Спецтранс\"","4407009445","440701001","Утилизация (захоронение) твердых бытовых отходов и иные виды деятельности"]

{"sheet":"modHyperlink","index":18,"n_rows":0,"n_cols":0,"rows_kept":0,"cut":false,"hidden":true,"merged":[]}

{"sheet":"modChange","index":19,"n_rows":0,"n_cols":0,"rows_kept":0,"cut":false,"hidden":true,"merged":[]}

{"sheet":"modTitleSheetHeaders","index":20,"n_rows":0,"n_cols":0,"rows_kept":0,"cut":false,"hidden":true,"merged":[]}

{"sheet":"modServiceModule","index":21,"n_rows":0,"n_cols":0,"rows_kept":0,"cut":false,"hidden":true,"merged":[]}

{"sheet":"modClassifierValidate","index":22,"n_rows":0,"n_cols":0,"rows_kept":0,"cut":false,"hidden":true,"merged":[]}

{"sheet":"Паспорт","index":23,"n_rows":71,"n_cols":57,"rows_kept":71,"cut":false,"hidden":true,"merged":[[64,3,64,10],[61,3,61,10],[63,5,63,10],[70,5,70,10],[69,5,69,10],[68,5,68,10],[67,5,67,10],[66,3,66,10],[33,3,33,10],[54,3,54,10],[62,5,62,10],[57,5,57,10],[58,5,58,10],[56,3,56,10],[36,8,36,10],[37,8,37,10],[59,5,59,10],[35,3,35,10],[30,5,30,10],[31,7,31,10],[32,7,32,10],[22,5,22,10],[23,5,23,10],[29,3,29,10],[25,3,25,10],[26,5,26,10],[27,3,27,10],[14,6,14,9],[21,5,21,10],[17,3,17,10],[15,5,15,10],[18,5,18,10],[19,5,19,10],[20,5,20,10],[3,3,3,10],[12,5,12,10],[13,5,13,10],[6,5,6,10],[7,5,7,10],[5,3,5,10],[8,5,8,10],[9,5,9,10],[10,5,10,10],[11,5,11,10],[46,8,46,10],[47,8,47,10],[41,8,41,10],[38,8,38,10],[39,8,39,10],[40,8,40,10],[44,8,44,10],[45,8,45,10],[42,8,42,10],[43,8,43,10],[48,8,48,10],[49,8,49,10],[52,8,52,10],[53,8,53,10],[50,8,50,10],[51,8,51,10]]}
[null,null,null,null,null,null,null,null,null,null,null,null,null,null,null,null,null,null,null,null,null,null,null,null,null,null,null,null,null,null,null,null,null,null,null,null,null,null,null,null,null,null,null,null,null,null,null,"Код диапазона:","Название диапазона:","Сфера регулирования:","Подсфера:","Тип информации в шаблоне:","Состояние шаблона:","Периодичность:","\"Геотип\" шаблона:","Тип шаблона:","Заказчик:"]
[null,null,null,null,null,null,null,null,null,null,null,null,null,null,null,null,null,null,null,null,null,null,null,null,null,null,null,null,null,null,null,null,null,null,null,null,null,null,null,null,null,null,null,null,null,null,null,"ps_sr","Сфера регулирования:","Не определено","Не определено","Не определено","Не определено","Не определено","Не определено","Не определено","Не определено"]
[null,null,null,null,null,null,null,null,null,null,null,null,null,null,null,null,null,null,null,null,null,null,null,null,null,null,null,null,null,null,null,null,null,null,null,null,null,null,null,null,null,null,null,null,null,null,null,"ps_ti","Тип информации в шаблоне:","NETS","водоотведение - очистка","Статистический","Проект","Единовременный","Региональный шаблон","Атомарный","РЭК"]
[null,null,null,"Паспорт к шаблону",null,null,null,null,null,null,null,null,null,null,null,null,null,null,null,null,null,null,null,null,null,null,null,null,null,null,null,null,null,null,null,null,null,null,null,null,null,null,null,null,null,null,null,"ps_ssh","Состояние шаблона:","Аэропорты","водоотведение - передача","Расчетный","Утвержден","Ежемесячный","Муниципальный шаблон","Сводный","ФСТ"]
[null,null,null,null,null,null,null,null,null,null,null,null,null,null,null,null,null,null,null,null,null,null,null,null,null,null,null,null,null,null,null,null,null,null,null,null,null,null,null,null,null,null,null,null,null,null,null,"ps_p","Периодичность:","Газ","водоотведение - прием","Обосновывающие материалы",null,"Ежеквартальный","Шаблон от организации",null,"Экспертная организация"]
[null,null,null,"1. Общие сведения",null,null,null,null,null,null,null,null,null,null,null,null,null,null,null,null,null,null,null,null,null,null,null,null,null,null,null,null,null,null,null,null,null,null,null,null,null,null,null,null,null,null,null,"ps_geo","\"Геотип\" шаблона:","Железные дороги","водоснабжение - очистка",null,null,"Ежегодный"]
[null,null,null,"1.1","Код",null,null,null,null,null,null,null,null,null,null,null,null,null,null,null,null,null,null,null,null,null,null,null,null,null,null,null,null,null,null,null,null,null,null,null,null,null,null,null,null,null,null,"ps_tsh","Тип шаблона:","ЖКХ","водоснабжение - передача"]
[null,null,null,"1.2","Краткое наименование",null,null,null,null,null,null,null,null,null,null,null,null,null,null,null,null,null,null,null,null,null,null,null,null,null,null,null,null,null,null,null,null,null,null,null,null,null,null,null,null,null,null,"ps_psr","Подсфера:","Медицина","водоснабжение - подъем"]
[null,null,null,"1.3","Полное наименование",null,null,null,null,null,null,null,null,null,null,null,null,null,null,null,null,null,null,null,null,null,null,null,null,null,null,null,null,null,null,null,null,null,null,null,null,null,null,null,null,null,null,"ps_z","Заказчик:","Порты","выработка ТС  "]
[null,null,null,"1.4","Сфера регулирования ",null,null,null,null,null,null,null,null,null,null,null,null,null,null,null,null,null,null,null,null,null,null,null,null,null,null,null,null,null,null,null,null,null,null,null,null,null,null,null,null,null,null,null,null,"Связь","выработка ТС в режиме комбинированной выработки"]
[null,null,null,"1.5","Подсфера",null,null,null,null,null,null,null,null,null,null,null,null,null,null,null,null,null,null,null,null,null,null,null,null,null,null,null,null,null,null,null,null,null,null,null,null,null,null,null,null,null,null,null,null,"Транспорт","выработка электрической энергии"]
[null,null,null,"1.6","Состояние шаблона (Утвержден/Проект)",null,null,null,null,null,null,null,null,null,null,null,null,null,null,null,null,null,null,null,null,null,null,null,null,null,null,null,null,null,null,null,null,null,null,null,null,null,null,null,null,null,null,null,null,"Электроэнергетика","выработка+передача+сбыт ТС"]
[null,null,null,"1.7","Заказчик",null,null,null,null,null,null,null,null,null,null,null,null,null,null,null,null,null,null,null,null,null,null,null,null,null,null,null,null,null,null,null,null,null,null,null,null,null,null,null,null,null,null,null,null,null,"передача ТС"]
[null,null,null,"1.8","Отчитывается",null,null,null,null,null,null,null,null,null,null,null,null,null,null,null,null,null,null,null,null,null,null,null,null,null,null,null,null,null,null,null,null,null,null,null,null,null,null,null,null,null,null,null,null,null,"передача ЭЭ"]
[null,null,null,"1.9","Тип шаблона",null,"Если шаблон сводный, необходимо указать код атомарного шаблона для него:",null,null,null,null,null,null,null,null,null,null,null,null,null,null,null,null,null,null,null,null,null,null,null,null,null,null,null,null,null,null,null,null,null,null,null,null,null,null,null,null,null,null,null,"сбыт ТС"]
[null,null,null,"1.10","Текущая версия",null,null,null,null,null,null,null,null,null,null,null,null,null,null,null,null,null,null,null,null,null,null,null,null,null,null,null,null,null,null,null,null,null,null,null,null,null,null,null,null,null,null,null,null,null,"сбыт ЭЭ"]
[null,null,null,null,null,null,null,null,null,null,null,null,null,null,null,null,null,null,null,null,null,null,null,null,null,null,null,null,null,null,null,null,null,null,null,null,null,null,null,null,null,null,null,null,null,null,null,null,null,null,"ТБО"]
[null,null,null,"2. Организационные"]
[null,null,null,"2.1","Тип информации в шаблоне "]
[null,null,null,"2.2","Ответственный регулятор (от заказчика)"]
[null,null,null,"2.3","Ответственный специалист (от СМА)"]
[null,null,null,"2.4","Ответственный программист (от СМА)"]
[null,null,null,"2.5","Ответственные за сбор данных (от СМА)"]
[null,null,null,"2.6","Ответственные за сбор данных (от заказчика)"]
[]
[null,null,null,"3. Законодательство (методики, приказы, постановления ...)"]
[null,null,"first","3.1","Документ1"]
[null,null,"end","Добавить документ"]
[]
[null,null,null,"4. Периодичность"]
[null,null,null,"4.1","Периодичность"]
[null,null,null,null,"Мониторинги(прошедшие и плановые)","Дата начала","Дата окончания","Согласно (приказ, постановление, письмо)"]
[null,null,"first","4.2.1","Мониторинг1"]
[null,null,"end","Добавить мониторинг"]
[]
[null,null,null,"5. Состав шаблона"]
[null,null,null,null,"Лист","Последняя дата изменений эскиза","Состояние листа","Наименование витрины для листа","Комментарии"]
[null,null,"first","5.1.1"]
[null,null,"Удалить","5.1.2"]
[null,null,"Удалить","5.1.3"]
[null,null,"Удалить","5.1.4"]
[null,null,"Удалить","5.1.5"]
[null,null,"Удалить","5.1.6"]
[null,null,"Удалить","5.1.7"]
[null,null,"Удалить","5.1.8"]
[null,null,"Удалить","5.1.9"]
[null,null,"Удалить","5.1.10"]
[null,null,"Удалить","5.1.11"]
[null,null,"Удалить","5.1.12"]
[null,null,"Удалить","5.1.13"]
[null,null,"Удалить","5.1.14"]
[null,null,"Удалить","5.1.15"]
[null,null,"Удалить","5.1.16"]
[null,null,"Удалить","5.1.17"]
[null,null,"end","Добавить лист"]
[]
[null,null,null,"6. Сроки и даты"]
[null,null,null,"6.1.1","Даты получения последних эскизов, от экспертов"]
[null,null,null,"6.1.2","Даты отправки шаблона на проверку"]
[null,null,null,"6.1.3","Предполагаемый срок сдачи шаблона в эксплуатацию"]
[]
[null,null,null,"7. Версии"]
[null,null,null,null,"Версия","Отличия от предыдущей"]
[null,null,"first","7.1"]
[null,null,"end","Добавить версию"]
[]
[null,null,null,"8. Дополнительно"]
[null,null,null,"8.1","Аналогичные(\"похожие\") шаблоны"]
[null,null,null,"8.2","Особенности шаблона"]
[null,null,null,"8.3","Модуль на основе данного шаблона"]
[null,null,null,"8.4","Процедуры загрузки данных в витрины"]

{"sheet":"REESTR_FILTERED","index":24,"n_rows":1,"n_cols":8,"rows_kept":1,"cut":false,"hidden":true,"merged":[]}
["№","МР","МО","МО ОКТМО","ОРГАНИЗАЦИЯ","ИНН","КПП","ВИД ДЕЯТЕЛЬНОСТИ"]

{"sheet":"REESTR_MO","index":25,"n_rows":184,"n_cols":5,"rows_kept":184,"cut":false,"hidden":true,"merged":[]}
["МР","МО","МО_ОКТМО","МР","ИМЯ ДИАПАЗОНА"]
["Антроповский муниципальный район","Антроповский муниципальный район","34602000","Антроповский муниципальный район","MO_LIST_2"]
["Антроповский муниципальный район","Антроповское","34602403","Буйский муниципальный район","MO_LIST_3"]
["Антроповский муниципальный район","Котельниковское","34602412","Вохомский муниципальный район","MO_LIST_4"]
["Антроповский муниципальный район","Курновское","34602404","Галичский муниципальный район","MO_LIST_5"]
["Антроповский муниципальный район","Палкинское","34602420","Город Нерехта и Нерехтский муниципальный район","MO_LIST_6"]
["Антроповский муниципальный район","Просекское","34602408","Город Нея и Нейский муниципальный район","MO_LIST_7"]
["Буйский муниципальный район","Барановское","34604404","Кадыйский муниципальный район","MO_LIST_8"]
["Буйский муниципальный район","Буйский муниципальный район","34604000","Кологривский муниципальный район","MO_LIST_9"]
["Буйский муниципальный район","Центральное","34604466","Костромской муниципальный район","MO_LIST_10"]
["Буйский муниципальный район","городское поселение посёлок Чистые Боры","34604159","Красносельский муниципальный район","MO_LIST_11"]
["Вохомский муниципальный район","Бельковское","34606404","Макарьевский муниципальный район","MO_LIST_12"]
["Вохомский муниципальный район","Воробьевицкое","34606408","Мантуровский муниципальный район","MO_LIST_13"]
["Вохомский муниципальный район","Вохомский муниципальный район","34606000","Межевской муниципальный район","MO_LIST_14"]
["Вохомский муниципальный район","Вохомское","34606410","Октябрьский муниципальный район","MO_LIST_15"]
["Вохомский муниципальный район","Лапшинское","34606416","Островский муниципальный район","MO_LIST_16"]
["Вохомский муниципальный район","Петрецовское","34606436","Павинский муниципальный район","MO_LIST_17"]
["Вохомский муниципальный район","Тихоновское","34606452","Парфеньевский муниципальный район","MO_LIST_18"]
["Галичский муниципальный район","Березовское","34608404","Поназыревский муниципальный район","MO_LIST_19"]
["Галичский муниципальный район","Галичский муниципальный район","34608000","Пыщугский муниципальный район","MO_LIST_20"]
["Галичский муниципальный район","Дмитриевское","34608407","Солигаличский муниципальный район","MO_LIST_21"]
["Галичский муниципальный район","Лопаревское","34608416","Судиславский муниципальный район","MO_LIST_22"]
["Галичский муниципальный район","Ореховское","34608428","Сусанинский муниципальный район","MO_LIST_23"]
["Галичский муниципальный район","Степановское","34608440","Чухломский муниципальный район","MO_LIST_24"]
["Город Нерехта и Нерехтский муниципальный район","Ёмсненское","34626420","Шарьинский муниципальный район","MO_LIST_25"]
["Город Нерехта и Нерехтский муниципальный район","Волжское","34626410","городской округ город  Волгореченск","MO_LIST_26"]
["Город Нерехта и Нерехтский муниципальный район","Воскресенское","34626412","городской округ город Буй","MO_LIST_27"]
["Город Нерехта и Нерехтский муниципальный район","Город Нерехта","34626101","городской округ город Галич","MO_LIST_28"]
["Город Нерехта и Нерехтский муниципальный район","Город Нерехта и Нерехтский муниципальный район","34626000","городской округ город Кострома","MO_LIST_29"]
["Город Нерехта и Нерехтский муниципальный район","Пригородное","34626450","городской округ город Мантурово","MO_LIST_30"]
["Город Нея и Нейский муниципальный район","Вожеровское","34624404","городской округ город Шарья","MO_LIST_31"]
["Город Нея и Нейский муниципальный район","Город Нея и Нейский муниципальный район","34624000"]
["Город Нея и Нейский муниципальный район","Еленское","34624406"]
["Город Нея и Нейский муниципальный район","Коткишевское","34624412"]
["Город Нея и Нейский муниципальный район","Кужбальское","34624416"]
["Город Нея и Нейский муниципальный район","Михалевское","34624420"]
["Город Нея и Нейский муниципальный район","Номженское","34624424"]
["Город Нея и Нейский муниципальный район","Солтановское","34624432"]
["Город Нея и Нейский муниципальный район","Тотомицкое","34624436"]
["Город Нея и Нейский муниципальный район","городское посление город Нея","34624101"]
["Кадыйский муниципальный район","Вёшкинское","34610420"]
["Кадыйский муниципальный район","Екатеринкинское","34610408"]
["Кадыйский муниципальный район","Завражное","34610412"]
["Кадыйский муниципальный район","Кадыйский муниципальный район","34610000"]
["Кадыйский муниципальный район","Паньковское","34610432"]
["Кадыйский муниципальный район","Селищенское","34610436"]
["Кадыйский муниципальный район","Столпинское","34610440"]
["Кадыйский муниципальный район","Чернышевское","34610444"]
["Кадыйский муниципальный район","городское посление поселок Кадый","34610151"]
["Кологривский муниципальный район","Илешевское","34612408"]
["Кологривский муниципальный район","Ильинское","34612412"]
["Кологривский муниципальный район","Кологривский муниципальный район","34612000"]
["Кологривский муниципальный район","Суховерховское","34612428"]
["Кологривский муниципальный район","Ужугское","34612432"]
["Кологривский муниципальный район","городское поселение город Кологрив","34612101"]
["Костромской муниципальный район","Апраксинское","34614404"]
["Костромской муниципальный район","Бакшеевское","34614408"]
["Костромской муниципальный район","Караваевское","34614411"]
["Костромской муниципальный район","Костромской муниципальный район","34614000"]
["Костромской муниципальный район","Котовское","34614412"]
["Костромской муниципальный район","Кузнецовское","34614416"]
["Костромской муниципальный район","Кузьмищенское","34614418"]
["Костромской муниципальный район","Минское","34614420"]
["Костромской муниципальный район","Никольское","34614424"]
["Костромской муниципальный район","Самсоновское","34614428"]
["Костромской муниципальный район","Сандогорское","34614432"]
["Костромской муниципальный район","Середняковское","34614434"]
["Костромской муниципальный район","Сущевское","34614436"]
["Костромской муниципальный район","Чернопенское","34614440"]
["Костромской муниципальный район","Шунгенское","34614444"]
["Красносельский муниципальный район","Боровиковское","34616404"]
["Красносельский муниципальный район","Гридинское","34616408"]
["Красносельский муниципальный район","Захаровское","34616412"]
["Красносельский муниципальный район","Красносельский муниципальный район","34616000"]
["Красносельский муниципальный район","Подольское","34616416"]
["Красносельский муниципальный район","Прискоковское","34616420"]
["Красносельский муниципальный район","Сидоровское","34616424"]
["Красносельский муниципальный район","Чапаевское","34616428"]
["Красносельский муниципальный район","Шолоховское","34616432"]
["Красносельский муниципальный район","городское поселение поселок Красное-на-Волге","34616151"]
["Макарьевский муниципальный район","Горчухинское","34618406"]
["Макарьевский муниципальный район","Макарьевский муниципальный район","34618000"]
["Макарьевский муниципальный район","Нежитинское","34618416"]
["Макарьевский муниципальный район","Николо-Макаровское","34618424"]
["Макарьевский муниципальный район","Тимошинское","34618432"]
["Макарьевский муниципальный район","Унженское","34618440"]
["Макарьевский муниципальный район","Усть-Нейское","34618444"]
["Макарьевский муниципальный район","Шемятинское","34618448"]
["Макарьевский муниципальный район","городское поселение город Макарьев","34618101"]
["Мантуровский муниципальный район","Знаменское","34620412"]
["Мантуровский муниципальный район","Леонтьевское","34620420"]
["Мантуровский муниципальный район","Мантуровский муниципальный район","34620000"]
["Мантуровский муниципальный район","Октябрьское","34620423"]
["Мантуровский муниципальный район","Подвигалихинское","34620424"]
["Мантуровский муниципальный район","Самыловское","34620432"]
["Межевской муниципальный район","Георгиевское","34622404"]
["Межевской муниципальный район","Межевской муниципальный район","34622000"]
["Межевской муниципальный район","Никольское","34622412"]
["Межевской муниципальный район","Родинское","34622422"]
["Межевской муниципальный район","Советское","34622426"]
["Октябрьский муниципальный район","Власовское","34628404"]
["Октябрьский муниципальный район","Луптюгское","34628412"]
["Октябрьский муниципальный район","Новинское","34628414"]
["Октябрьский муниципальный район","Октябрьский муниципальный район","34628000"]
["Октябрьский муниципальный район","Покровское","34628416"]
["Октябрьский муниципальный район","Соловецкое","34628424"]
["Островский муниципальный район","Адищевское","34630404"]
["Островский муниципальный район","Александровское","34630406"]
["Островский муниципальный район","Игодовское","34630420"]
["Островский муниципальный район","Клеванцовское","34630424"]
["Островский муниципальный район","Островский муниципальный район","34630000"]
["Островский муниципальный район","Островское","34630432"]
["Островский муниципальный район","Островское (Центральное)","34630438"]
["Павинский муниципальный район","Доброумовское","34632404"]
["Павинский муниципальный район","Крутогорское","34632406"]
["Павинский муниципальный район","Леденгское","34632408"]
["Павинский муниципальный район","Медведицкое","34632412"]
["Павинский муниципальный район","Павинский муниципальный район","34632000"]
["Павинский муниципальный район","Павинское","34632416"]
["Павинский муниципальный район","Петропавловское","34632420"]
["Парфеньевский муниципальный район","Матвеевское","34634424"]
["Парфеньевский муниципальный район","Николо-Поломское","34634420"]
["Парфеньевский муниципальный район","Парфеньевский муниципальный район","34634000"]
["Парфеньевский муниципальный район","Парфеньевское","34634428"]
["Парфеньевский муниципальный район","Потрусовское","34634432"]
["Поназыревский муниципальный район","Полдневицкое","34636418"]
["Поназыревский муниципальный район","Поназыревский муниципальный район","34636000"]
["Поназыревский муниципальный район","Хмелевское","34636424"]
["Поназыревский муниципальный район","Якшангское","34636432"]
["Поназыревский муниципальный район","городское поселение посёлок Поназырево","34636151"]
["Пыщугский муниципальный район","Верхнеспасское","34638404"]
["Пыщугский муниципальный район","Головинское","34638412"]
["Пыщугский муниципальный район","Носковское","34638424"]
["Пыщугский муниципальный район","Пыщугский муниципальный район","34638000"]
["Пыщугский муниципальный район","Пыщугское","34638428"]
["Солигаличский муниципальный район","Бурдуковское","34640404"]
["Солигаличский муниципальный район","Васильевское","34640408"]
["Солигаличский муниципальный район","Корцовское","34640424"]
["Солигаличский муниципальный район","Куземинское","34640428"]
["Солигаличский муниципальный район","Лосевское","34640432"]
["Солигаличский муниципальный район","Первомайское","34640436"]
["Солигаличский муниципальный район","Солигаличский муниципальный район","34640000"]
["Солигаличский муниципальный район","Солигаличское","34640440"]
["Солигаличский муниципальный район","городское поселение город Солигалич","34640101"]
["Судиславский муниципальный район","Воронское","34642408"]
["Судиславский муниципальный район","Расловское","34642424"]
["Судиславский муниципальный район","Судиславский муниципальный район","34642000"]
["Судиславский муниципальный район","Судиславское","34642432"]
["Судиславский муниципальный район","городское поселение посёлок Судиславль","34642151"]
["Сусанинский муниципальный район","Андреевское","34644404"]
["Сусанинский муниципальный район","Буяковское","34644408"]
["Сусанинский муниципальный район","Северное","34644428"]
["Сусанинский муниципальный район","Сокиринское","34644436"]
["Сусанинский муниципальный район","Сумароковское","34644432"]
["Сусанинский муниципальный район","Сусанинский муниципальный район","34644000"]
["Сусанинский муниципальный район","Ченцовское","34644440"]
["Сусанинский муниципальный район","городское поселение посёлок Сусанино","34644151"]
["Чухломский муниципальный район","Ножкинское","34646420"]
["Чухломский муниципальный район","Панкратовское","34646444"]
["Чухломский муниципальный район","Петровское","34646424"]
["Чухломский муниципальный район","Повалихинское","34646428"]
["Чухломский муниципальный район","Судайское","34646436"]
["Чухломский муниципальный район","Чухломский муниципальный район","34646000"]
["Чухломский муниципальный район","Чухломское","34646452"]
["Чухломский муниципальный район","Шартановское","34646456"]
["Чухломский муниципальный район","городское поселение город Чухлома","34646101"]
["Шарьинский муниципальный район","Варакинское","34648403"]
["Шарьинский муниципальный район","Головинское","34648404"]
["Шарьинский муниципальный район","Заболотское","34648408"]
["Шарьинский муниципальный район","Зебляковское","34648410"]
["Шарьинский муниципальный район","Ивановское","34648412"]
["Шарьинский муниципальный район","Конёвское","34648420"]
["Шарьинский муниципальный район","Одоевское","34648436"]
["Шарьинский муниципальный район","Троицкое","34648452"]
["Шарьинский муниципальный район","Шангское","34648456"]
["Шарьинский муниципальный район","Шарьинский муниципальный район","34648000"]
["Шарьинский муниципальный район","Шекшемское","34648457"]
["городской округ город  Волгореченск","городской округ город  Волгореченск","34706000"]
["городской округ город  Волгореченск","городской округ город Волгореченск","34706000"]
["городской округ город Буй","городской округ город Буй","34705000"]
["городской округ город Галич","городской округ город Галич","34708000"]
["городской округ город Кострома","городской округ город Кострома","34701000"]
["городской округ город Мантурово","городской округ город Мантурово","34714000"]
["городской округ город Шарья","городской округ город Шарья","34730000"]

{"sheet":"modfrmReestr","index":26,"n_rows":0,"n_cols":0,"rows_kept":0,"cut":false,"hidden":true,"merged":[]}

{"sheet":"modDblClick","index":27,"n_rows":0,"n_cols":0,"rows_kept":0,"cut":false,"hidden":true,"merged":[]}

{"sheet":"modfrmDateChoose","index":28,"n_rows":0,"n_cols":0,"rows_kept":0,"cut":false,"hidden":true,"merged":[]}

{"sheet":"modfrmSphereChoose","index":29,"n_rows":0,"n_cols":0,"rows_kept":0,"cut":false,"hidden":true,"merged":[]}

{"sheet":"modSheetMain01","index":30,"n_rows":0,"n_cols":0,"rows_kept":0,"cut":false,"hidden":true,"merged":[]}

{"sheet":"modSheetMain03","index":31,"n_rows":0,"n_cols":0,"rows_kept":0,"cut":false,"hidden":true,"merged":[]}

{"sheet":"modSheetMain04","index":32,"n_rows":0,"n_cols":0,"rows_kept":0,"cut":false,"hidden":true,"merged":[]}

{"sheet":"modSheetMain06","index":33,"n_rows":0,"n_cols":0,"rows_kept":0,"cut":false,"hidden":true,"merged":[]}

{"sheet":"modSheetMain07","index":34,"n_rows":0,"n_cols":0,"rows_kept":0,"cut":false,"hidden":true,"merged":[]}

{"sheet":"modSheetMain08","index":35,"n_rows":0,"n_cols":0,"rows_kept":0,"cut":false,"hidden":true,"merged":[]}

{"sheet":"modUpdTemplMain","index":36,"n_rows":0,"n_cols":0,"rows_kept":0,"cut":false,"hidden":true,"merged":[]}

{"sheet":"modRegionSelectSub","index":37,"n_rows":0,"n_cols":0,"rows_kept":0,"cut":false,"hidden":true,"merged":[]}

{"sheet":"modfrmCheckUpdates","index":38,"n_rows":0,"n_cols":0,"rows_kept":0,"cut":false,"hidden":true,"merged":[]}

{"sheet":"modCommonProv","index":39,"n_rows":0,"n_cols":0,"rows_kept":0,"cut":false,"hidden":true,"merged":[]}

{"sheet":"modProvGeneralProc","index":40,"n_rows":0,"n_cols":0,"rows_kept":0,"cut":false,"hidden":true,"merged":[]}

{"sheet":"modThisWorkbook","index":41,"n_rows":1,"n_cols":3,"rows_kept":1,"cut":false,"hidden":true,"merged":[]}
[null,null,{"$f":"\"modServiceModule.IsNameExists(wbBook, \"\"\"&A1&\"\"\") = False Or \" &  \"modServiceModule.IsNameExists(wbBook, \"\"\"&A2&\"\"\") = False or _\"","v":"modServiceModule.IsNameExists(wbBook, \"\") = False Or modServiceModule.IsNameExists(wbBook, \"\") = False or _"}]